fUST/lending_fUST_20250206
["ID","MTS","AMOUNT","RATE_DAILY","PERIOD"]
[351765727,1738781438864,-500.0,0.00014486,2]
[351765729,1738781438874,-664.78,0.00014486,2]
[351765731,1738781438884,-500.0,0.00014486,2]
[351765733,1738781438894,-500.0,0.00014486,2]
[351765735,1738781438903,-500.0,0.00014486,2]
[351765737,1738781438913,-2758.4,0.00014486,2]
[351765739,1738781438923,-506.91672502,0.00014486,2]
[351765741,1738781438932,-500.0,0.00014486,2]
[351765743,1738781438942,-500.0,0.00014486,2]
[351765745,1738781438952,-500.0,0.00014486,2]
[351765747,1738781438961,-8388.51,0.00014486,2]
[351765749,1738781438971,-500.0,0.00014486,2]
[351765751,1738781438980,-500.0,0.00014486,2]
[351765753,1738781438990,-500.0,0.00014486,2]
[351765755,1738781439000,-500.0,0.00014486,2]
[351765757,1738781439009,-500.0,0.00014486,2]
[351765759,1738781439019,-500.0,0.00014486,2]
[351765761,1738781439028,-643.4,0.00014486,2]
[351765763,1738781439040,-4263.13,0.00014486,2]
[351765765,1738781439050,-500.0,0.00014487,2]
[351765767,1738781439059,-1049.38,0.00014487,2]
[351765769,1738781439069,-500.0,0.00014487,2]
[351765771,1738781439079,-2858.4,0.00014487,2]
[351765773,1738781439088,-500.0,0.00014487,2]
[351765775,1738781439098,-500.0,0.00014487,2]
[351765777,1738781439107,-500.0,0.00014487,2]
[351765779,1738781439117,-516.24,0.00014487,2]
[351765781,1738781439127,-2096.22,0.00014487,2]
[351765783,1738781439138,-500.0,0.00014487,2]
[351765785,1738781439148,-939.32,0.00014487,2]
[351765787,1738781439158,-1665.38,0.00014487,2]
[351765789,1738781439167,-500.0,0.00014487,2]
[351765791,1738781439176,-1406.6,0.00014487,2]
[351765793,1738781439186,-500.0,0.00014487,2]
[351765795,1738781439195,-352.54752496,0.00014487,2]
[351765797,1738781439205,-501.74,0.00014487,2]
[351765799,1738781439214,-501.74,0.00014487,2]
[351765801,1738781439223,-501.74,0.00014487,2]
[351765803,1738781439232,-501.74,0.00014487,2]
[351765805,1738781439242,-501.74,0.00014487,2]
[351765807,1738781439251,-2534.97,0.00014487,2]
[351765809,1738781439260,-1014.65,0.00014487,2]
[351765811,1738781439270,-500.0,0.00014487,2]
[351765813,1738781439280,-500.0,0.00014487,2]
[351765815,1738781439291,-1685.79,0.00014487,2]
[351765817,1738781439300,-500.0,0.00014487,2]
[351765819,1738781439310,-500.0,0.00014487,2]
[351765821,1738781439319,-1526.51,0.00014487,2]
[351765823,1738781439328,-1635.46,0.00014487,2]
[351765825,1738781439338,-734.3,0.00014487,2]
[351765827,1738781439351,-500.0,0.00014487,2]
[351765829,1738781439363,-500.0,0.00014487,2]
[351765831,1738781439372,-500.0,0.00014487,2]
[351765833,1738781439382,-500.0,0.00014487,2]
[351765835,1738781439392,-816.38,0.00014487,2]
[351765852,1738781439533,-1121.65,0.00014487,2]
[351765859,1738781439575,-2437.97,0.00014487,2]
[351765861,1738781439585,-596.81,0.00014487,2]
[351765864,1738781439594,-870.8,0.00014487,2]
[351765867,1738781439603,-986.73,0.00014487,2]
[351765870,1738781439614,-500.0,0.00014487,2]
[351765872,1738781439624,-1905.47,0.00014487,2]
[351765874,1738781439635,-500.0,0.00014487,2]
[351765876,1738781439645,-500.0,0.00014487,2]
[351765878,1738781439655,-629.77,0.00014487,2]
[351765880,1738781439664,-629.77,0.00014487,2]
[351765882,1738781439675,-629.77,0.00014487,2]
[351765884,1738781439686,-629.77,0.00014487,2]
[351765886,1738781439696,-629.77,0.00014487,2]
[351765888,1738781439706,-629.77,0.00014487,2]
[351765890,1738781439715,-629.77,0.00014487,2]
[351765892,1738781439725,-629.77,0.00014487,2]
[351765894,1738781439735,-500.0,0.00014487,2]
[351765896,1738781439745,-629.77,0.00014487,2]
[351765898,1738781439755,-629.77,0.00014487,2]
[351765900,1738781439766,-629.77,0.00014487,2]
[351765902,1738781439777,-629.77,0.00014487,2]
[351765904,1738781439788,-629.77,0.00014487,2]
[351765906,1738781439798,-629.77,0.00014487,2]
[351765908,1738781439807,-629.77,0.00014487,2]
[351765910,1738781439816,-629.77,0.00014487,2]
[351765911,1738781439825,-500.0,0.00014487,2]
[351765912,1738781439835,-500.0,0.00014487,2]
[351765913,1738781439845,-500.0,0.00014487,2]
[351765914,1738781439854,-500.0,0.00014487,2]
[351765915,1738781439863,-2918.97,0.00014487,2]
[351765916,1738781439874,-500.0,0.00014487,2]
[351765917,1738781439884,-500.0,0.00014487,2]
[351765918,1738781439894,-1252.72,0.00014487,2]
[351765919,1738781439903,-1190.24,0.00014487,2]
[351765920,1738781439912,-500.0,0.00014487,2]
[351765921,1738781439921,-706.15,0.00014487,2]
[351765922,1738781439930,-500.0,0.00014487,2]
[351765923,1738781439939,-3072.18,0.00014487,2]
[351765924,1738781439948,-500.0,0.00014487,2]
[351765925,1738781439957,-2749.91,0.00014487,2]
[351765926,1738781439966,-500.0,0.00014487,2]
[351765927,1738781439976,-500.0,0.00014487,2]
[351765928,1738781439986,-500.0,0.00014487,2]
[351765929,1738781439995,-1014.54,0.00014487,2]
[351765930,1738781440004,-3846.58,0.00014487,2]
[351765931,1738781440013,-500.0,0.00014487,2]
[351765932,1738781440022,-500.0,0.00014487,2]
[351765933,1738781440031,-495.71475009,0.00014487,2]
[351765934,1738781440042,-500.0,0.00014487,2]
[351765935,1738781440051,-653.87,0.00014487,2]
[351765936,1738781440060,-500.0,0.00014487,2]
[351765937,1738781440069,-882.06,0.00014487,2]
[351765938,1738781440078,-1321.07,0.00014487,2]
[351765939,1738781440087,-500.0,0.00014487,2]
[351765940,1738781440097,-878.87,0.00014487,2]
[351765941,1738781440106,-500.0,0.00014487,2]
[351765942,1738781440116,-500.0,0.00014487,2]
[351765943,1738781440125,-605.85,0.00014487,2]
[351765944,1738781440135,-564.60401182,0.00014487,2]
[351765945,1738781440144,-578.93,0.00014487,2]
[351765946,1738781440154,-500.0,0.00014487,2]
[351765947,1738781440163,-1636.16,0.00014487,2]
[351765948,1738781440172,-8368.04,0.00014487,2]
[351765949,1738781440182,-160.82808555,0.00014487,2]
[351765950,1738781440191,-500.0,0.00014487,2]
[351765951,1738781440201,-1459.97,0.00014487,2]
[351765952,1738781440210,-701.6,0.00014487,2]
[351765953,1738781440219,-500.0,0.00014487,2]
[351765954,1738781440229,-500.0,0.00014487,2]
[351765955,1738781440239,-500.0,0.00014487,2]
[351765956,1738781440248,-500.0,0.00014487,2]
[351765957,1738781440258,-500.0,0.00014487,2]
[351765958,1738781440268,-500.0,0.00014487,2]
[351765959,1738781440279,-1645.18,0.00014487,2]
[351765960,1738781440290,-768.51,0.00014487,2]
[351765961,1738781440300,-500.0,0.00014487,2]
[351765962,1738781440311,-500.0,0.00014487,2]
[351765963,1738781440321,-500.0,0.00014487,2]
[351765964,1738781440332,-500.0,0.00014487,2]
[351765965,1738781440341,-500.0,0.00014487,2]
[351765966,1738781440351,-500.0,0.00014487,2]
[351765967,1738781440361,-500.0,0.00014487,2]
[351765968,1738781440371,-500.0,0.00014487,2]
[351765969,1738781440380,-500.0,0.00014487,2]
[351765970,1738781440390,-906.71,0.00014487,2]
[351765971,1738781440399,-500.0,0.00014487,2]
[351765972,1738781440408,-500.0,0.00014487,2]
[351765973,1738781440417,-500.0,0.00014487,2]
[351765974,1738781440427,-500.0,0.00014487,2]
[351765975,1738781440436,-500.0,0.00014487,2]
[351765977,1738781440447,-500.0,0.00014487,2]
[351765979,1738781440456,-500.0,0.00014487,2]
[351765981,1738781440466,-500.0,0.00014487,2]
[351765983,1738781440475,-249.74,0.00014487,2]
[351765985,1738781440485,-1109.36,0.00014487,2]
[351765987,1738781440495,-500.0,0.00014487,2]
[351765989,1738781440504,-500.0,0.00014487,2]
[351765991,1738781440514,-500.0,0.00014487,2]
[351765993,1738781440523,-500.0,0.00014487,2]
[351765995,1738781440534,-8104.13,0.00014487,2]
[351765997,1738781440546,-37596.57,0.00014487,2]
[351765999,1738781440556,-521.04,0.00014487,2]
[351766001,1738781440566,-582.47,0.00014487,2]
[351766003,1738781440576,-500.0,0.00014487,2]
[351766005,1738781440587,-500.0,0.00014487,2]
[351766007,1738781440596,-5859.5,0.00014487,2]
[351766009,1738781440606,-326.52367571,0.00014487,2]
[351766011,1738781440615,-500.0,0.00014487,2]
[351766013,1738781440627,-610.6,0.00014487,2]
[351766015,1738781440638,-642.47,0.00014487,2]
[351766017,1738781440647,-500.0,0.00014487,2]
[351766019,1738781440656,-500.0,0.00014487,2]
[351766021,1738781440666,-500.0,0.00014487,2]
[351766023,1738781440675,-641.97,0.00014487,2]
[351766025,1738781440685,-500.0,0.00014487,2]
[351766027,1738781440695,-2911.62,0.00014487,2]
[351766029,1738781440704,-500.0,0.00014487,2]
[351766031,1738781440714,-500.0,0.00014487,2]
[351766033,1738781440726,-518.32,0.00014487,2]
[351766035,1738781440737,-500.0,0.00014487,2]
[351766037,1738781440747,-122012.04,0.00014487,2]
[351766039,1738781440758,-501.74,0.00014488,2]
[351766041,1738781440768,-501.74,0.00014488,2]
[351766043,1738781440779,-501.74,0.00014488,2]
[351766045,1738781440792,-501.74,0.00014488,2]
[351766047,1738781440802,-501.74,0.00014488,2]
[351766049,1738781440813,-501.74,0.00014488,2]
[351766051,1738781440823,-501.74,0.00014488,2]
[351766053,1738781440833,-501.74,0.00014488,2]
[351766055,1738781440844,-501.74,0.00014488,2]
[351766057,1738781440855,-501.74,0.00014488,2]
[351766059,1738781440864,-501.74,0.00014488,2]
[351766060,1738781440874,-501.74,0.00014488,2]
[351766061,1738781440883,-501.74,0.00014488,2]
[351766062,1738781440893,-501.74,0.00014488,2]
[351766063,1738781440903,-501.74,0.00014488,2]
[351766064,1738781440913,-501.74,0.00014488,2]
[351766066,1738781440923,-501.74,0.00014488,2]
[351766068,1738781440932,-501.74,0.00014488,2]
[351766069,1738781440942,-501.88097127,0.00014488,2]
[351766070,1738781440954,-629.77,0.00014488,2]
[351766071,1738781440967,-629.77,0.00014488,2]
[351766072,1738781440978,-629.77,0.00014488,2]
[351766073,1738781440988,-629.77,0.00014488,2]
[351766074,1738781440998,-629.77,0.00014488,2]
[351766075,1738781441008,-629.77,0.00014488,2]
[351766076,1738781441018,-629.89,0.00014488,2]
[351766077,1738781441028,-5133.3,0.00014488,2]
[351766078,1738781441038,-500.0,0.00014488,2]
[351766079,1738781441047,-3131.22,0.00014488,2]
[351766080,1738781441057,-500.0,0.00014488,2]
[351766081,1738781441067,-761.99,0.00014488,2]
[351766082,1738781441076,-493.45439239,0.00014488,2]
[351766083,1738781441086,-581.56,0.00014488,2]
[351766084,1738781441095,-264.22260139,0.00014488,2]
[351766085,1738781441105,-35516.49,0.00014488,2]
[351766086,1738781441115,-3064.63,0.00014488,2]
[351766087,1738781441124,-500.0,0.00014488,2]
[351766088,1738781441136,-643.89,0.00014489,2]
[351766089,1738781441145,-1223.17,0.00014489,2]
[351766090,1738781441155,-500.0,0.00014489,2]
[351766091,1738781441164,-517.78911673,0.00014489,2]
[351766092,1738781441174,-768.15,0.00014489,2]
[351766093,1738781441183,-500.0,0.00014489,2]
[351766094,1738781441193,-500.0,0.00014489,2]
[351766095,1738781441203,-500.0,0.00014489,2]
[351766096,1738781441212,-500.0,0.00014489,2]
[351766097,1738781441222,-500.0,0.00014489,2]
[351766098,1738781441231,-500.0,0.00014489,2]
[351766099,1738781441241,-500.0,0.00014489,2]
[351766100,1738781441251,-500.0,0.00014489,2]
[351766101,1738781441260,-500.0,0.00014489,2]
[351766102,1738781441270,-500.0,0.00014489,2]
[351766103,1738781441280,-500.0,0.00014489,2]
[351766104,1738781441290,-500.0,0.00014489,2]
[351766105,1738781441300,-500.0,0.00014489,2]
[351766106,1738781441310,-500.0,0.00014489,2]
[351766107,1738781441319,-500.0,0.00014489,2]
[351766108,1738781441329,-518.48,0.00014489,2]
[351766109,1738781441338,-502.32749798,0.00014489,2]
[351766110,1738781441348,-500.0,0.00014489,2]
[351766111,1738781441358,-500.0,0.00014489,2]
[351766112,1738781441367,-500.0,0.00014489,2]
[351766113,1738781441377,-500.0,0.00014489,2]
[351766114,1738781441387,-500.0,0.00014489,2]
[351766115,1738781441396,-500.0,0.00014489,2]
[351766116,1738781441406,-500.0,0.00014489,2]
[351766117,1738781441415,-500.0,0.00014489,2]
[351766118,1738781441424,-500.0,0.00014489,2]
[351766119,1738781441434,-500.0,0.00014489,2]
[351766120,1738781441444,-500.0,0.00014489,2]
[351766121,1738781441454,-500.0,0.00014489,2]
[351766122,1738781441464,-652.99,0.00014489,2]
[351766123,1738781441473,-501.71599731,0.00014489,2]
[351766124,1738781441483,-671.98,0.00014489,2]
[351766125,1738781441495,-500.0,0.00014489,2]
[351766126,1738781441507,-500.0,0.00014489,2]
[351766127,1738781441516,-500.0,0.00014489,2]
[351766128,1738781441526,-501.18248744,0.00014489,2]
[351766129,1738781441539,-500.0,0.00014489,2]
[351766130,1738781441548,-500.0,0.00014489,2]
[351766131,1738781441558,-528.47,0.00014489,2]
[351766132,1738781441571,-500.0,0.00014489,2]
[351766133,1738781441584,-500.0,0.00014489,2]
[351766134,1738781441596,-502.19630505,0.00014489,2]
[351766135,1738781441607,-328.23527834,0.00014489,2]
[351766136,1738781441620,-500.0,0.00014489,2]
[351766137,1738781441635,-500.0,0.00014489,2]
[351766138,1738781441652,-506.00447112,0.00014489,2]
[351766139,1738781441663,-500.0,0.00014489,2]
[351766140,1738781441674,-500.0,0.00014489,2]
[351766141,1738781441684,-500.0,0.00014489,2]
[351766142,1738781441693,-605.27,0.00014489,2]
[351766143,1738781441704,-500.0,0.00014489,2]
[351766144,1738781441715,-500.0,0.00014489,2]
[351766145,1738781441724,-1458.24,0.00014489,2]
[351766146,1738781441734,-500.0,0.00014489,2]
[351766147,1738781441744,-500.0,0.00014489,2]
[351766148,1738781441754,-500.0,0.00014489,2]
[351766149,1738781441764,-504.98740706,0.00014489,2]
[351766150,1738781441774,-500.0,0.00014489,2]
[351766151,1738781441784,-500.0,0.00014489,2]
[351766152,1738781441795,-500.30604606,0.00014489,2]
[351766153,1738781441804,-500.0,0.00014489,2]
[351766154,1738781441814,-500.0,0.00014489,2]
[351766155,1738781441826,-500.0,0.00014489,2]
[351766156,1738781441835,-526.88564986,0.00014489,2]
[351766157,1738781441845,-500.4711566,0.00014489,2]
[351766158,1738781441854,-500.0,0.00014489,2]
[351766159,1738781441863,-500.0,0.00014489,2]
[351766160,1738781441872,-500.0,0.00014489,2]
[351766161,1738781441883,-500.0,0.00014489,2]
[351766162,1738781441894,-851.85,0.00014489,2]
[351766163,1738781441904,-500.0,0.00014489,2]
[351766164,1738781441914,-500.0,0.00014489,2]
[351766165,1738781441924,-500.0,0.00014489,2]
[351766166,1738781441934,-507.25171621,0.00014489,2]
[351766167,1738781441944,-500.98027932,0.00014489,2]
[351766168,1738781441954,-500.0,0.00014489,2]
[351766169,1738781441964,-500.0,0.00014489,2]
[351766170,1738781441973,-500.0,0.00014489,2]
[351766171,1738781441983,-796.44,0.00014489,2]
[351766172,1738781441992,-500.0,0.00014489,2]
[351766173,1738781442002,-500.0,0.00014489,2]
[351766174,1738781442011,-500.0,0.00014489,2]
[351766175,1738781442021,-500.0,0.00014489,2]
[351766176,1738781442031,-500.0,0.00014489,2]
[351766177,1738781442042,-500.0,0.00014489,2]
[351766178,1738781442051,-500.0,0.00014489,2]
[351766179,1738781442061,-500.0,0.00014489,2]
[351766180,1738781442071,-500.0,0.00014489,2]
[351766181,1738781442080,-500.0,0.00014489,2]
[351766182,1738781442089,-500.0,0.00014489,2]
[351766183,1738781442099,-500.0,0.00014489,2]
[351766184,1738781442108,-500.0,0.00014489,2]
[351766185,1738781442119,-500.0,0.00014489,2]
[351766186,1738781442128,-500.0,0.00014489,2]
[351766187,1738781442138,-485.95503907,0.00014489,2]
[351766188,1738781442148,-500.0,0.00014489,2]
[351766189,1738781442158,-500.0,0.00014489,2]
[351766190,1738781442167,-500.0,0.00014489,2]
[351766191,1738781442177,-500.0,0.00014489,2]
[351766192,1738781442187,-500.0,0.00014489,2]
[351766193,1738781442196,-500.0,0.00014489,2]
[351766194,1738781442205,-500.0,0.00014489,2]
[351766195,1738781442214,-1168.35,0.00014489,2]
[351766196,1738781442224,-500.0,0.00014489,2]
[351766197,1738781442234,-500.0,0.00014489,2]
[351766198,1738781442244,-500.0,0.00014489,2]
[351766199,1738781442255,-500.0,0.00014489,2]
[351766200,1738781442264,-500.0,0.00014489,2]
[351766201,1738781442413,-499.63457526,0.00014489,2]
[351766202,1738781442423,-500.0,0.00014489,2]
[351766203,1738781442433,-522.0,0.00014489,2]
[351766204,1738781442443,-526.51,0.00014489,2]
[351766205,1738781442453,-500.0,0.00014489,2]
[351766206,1738781442462,-766.94,0.00014489,2]
[351766207,1738781442472,-223.61797032,0.00014489,2]
[351766208,1738781442482,-500.0,0.00014489,2]
[351766210,1738781442492,-500.0,0.00014489,2]
[351766212,1738781442501,-500.0,0.00014489,2]
[351766214,1738781442511,-500.0,0.00014489,2]
[351766215,1738781442522,-500.0,0.00014489,2]
[351766216,1738781442532,-500.0,0.00014489,2]
[351766217,1738781442544,-566.76,0.00014489,2]
[351766219,1738781442554,-500.0,0.00014489,2]
[351766220,1738781442564,-500.0,0.00014489,2]
[351766221,1738781442574,-811.25,0.00014489,2]
[351766222,1738781442584,-500.0,0.00014489,2]
[351766223,1738781442595,-500.0,0.00014489,2]
[351766224,1738781442605,-796.08,0.00014489,2]
[351766225,1738781442615,-1797.93,0.00014489,2]
[351766227,1738781442627,-500.0,0.00014489,2]
[351766229,1738781442637,-698.93,0.00014489,2]
[351766230,1738781442647,-500.0,0.00014489,2]
[351766231,1738781442657,-662.04,0.00014489,2]
[351766232,1738781442667,-500.0,0.00014489,2]
[351766233,1738781442677,-880.96,0.00014489,2]
[351766234,1738781442687,-500.0,0.00014489,2]
[351766235,1738781442696,-604.25,0.00014489,2]
[351766236,1738781442706,-500.0,0.00014489,2]
[351766237,1738781442716,-500.0,0.00014489,2]
[351766238,1738781442725,-520.31082298,0.00014489,2]
[351766239,1738781442735,-500.0,0.00014489,2]
[351766241,1738781442745,-446.62244191,0.00014489,2]
[351766243,1738781442754,-912.41,0.00014489,2]
[351766245,1738781442764,-554.01,0.00014489,2]
[351766248,1738781442774,-500.0,0.00014489,2]
[351766250,1738781442783,-500.0,0.00014489,2]
[351766252,1738781442794,-975.75,0.00014489,2]
[351766254,1738781442803,-1645.26,0.00014489,2]
[351766256,1738781442813,-500.0,0.00014489,2]
[351766258,1738781442823,-500.0,0.00014489,2]
[351766259,1738781442832,-506.34,0.00014489,2]
[351766260,1738781442842,-500.0,0.00014489,2]
[351766261,1738781442852,-510.38444078,0.00014489,2]
[351766263,1738781442861,-2418.13,0.00014489,2]
[351766265,1738781442872,-505.14936998,0.00014489,2]
[351766267,1738781442882,-500.0,0.00014489,2]
[351766269,1738781442892,-500.0,0.00014489,2]
[351766271,1738781442901,-500.0,0.00014489,2]
[351766273,1738781442911,-500.0,0.00014489,2]
[351766275,1738781442920,-501.44963769,0.00014489,2]
[351766276,1738781442931,-500.0,0.00014489,2]
[351766277,1738781442941,-500.0,0.00014489,2]
[351766278,1738781442951,-500.0,0.00014489,2]
[351766280,1738781442960,-500.0,0.00014489,2]
[351766282,1738781442970,-500.0,0.00014489,2]
[351766283,1738781442979,-500.0,0.00014489,2]
[351766285,1738781442988,-500.0,0.00014489,2]
[351766287,1738781442997,-500.0,0.00014489,2]
[351766289,1738781443007,-1000.0,0.00014489,2]
[351766291,1738781443016,-841.37,0.00014489,2]
[351766293,1738781443025,-660.44,0.00014489,2]
[351766295,1738781443036,-500.0,0.00014489,2]
[351766296,1738781443046,-500.0,0.00014489,2]
[351766298,1738781443056,-500.0,0.00014489,2]
[351766300,1738781443065,-500.0,0.00014489,2]
[351766302,1738781443074,-760.32,0.00014489,2]
[351766304,1738781443083,-502.59962938,0.00014489,2]
[351766306,1738781443093,-500.0,0.00014489,2]
[351766308,1738781443102,-500.0,0.00014489,2]
[351766310,1738781443112,-500.0,0.00014489,2]
[351766312,1738781443121,-500.0,0.00014489,2]
[351766314,1738781443131,-1080.47,0.00014489,2]
[351766316,1738781443140,-500.0,0.00014489,2]
[351766318,1738781443150,-500.0,0.00014489,2]
[351766320,1738781443159,-500.0,0.00014489,2]
[351766322,1738781443168,-931.14,0.00014489,2]
[351766324,1738781443178,-501.84635472,0.00014489,2]
[351766326,1738781443187,-500.0,0.00014489,2]
[351766328,1738781443196,-500.22088784,0.00014489,2]
[351766330,1738781443206,-544.53,0.00014489,2]
[351766332,1738781443215,-500.0,0.00014489,2]
[351766334,1738781443225,-500.0,0.00014489,2]
[351766336,1738781443234,-500.0,0.00014489,2]
[351766338,1738781443243,-500.0,0.00014489,2]
[351766340,1738781443253,-188.0,0.00014489,2]
[351766342,1738781443263,-500.54458456,0.00014489,2]
[351766344,1738781443274,-500.0,0.00014489,2]
[351766346,1738781443283,-500.0,0.00014489,2]
[351766348,1738781443293,-500.0,0.00014489,2]
[351766350,1738781443303,-500.0,0.00014489,2]
[351766352,1738781443312,-500.0,0.00014489,2]
[351766355,1738781443322,-500.0,0.00014489,2]
[351766358,1738781443331,-1257.42,0.00014489,2]
[351766361,1738781443340,-592.54012417,0.00014489,2]
[351766364,1738781443350,-500.0,0.00014489,2]
[351766367,1738781443360,-500.0,0.00014489,2]
[351766369,1738781443369,-500.0,0.00014489,2]
[351766371,1738781443379,-500.0,0.00014489,2]
[351766373,1738781443390,-500.0,0.00014489,2]
[351766375,1738781443399,-500.0,0.00014489,2]
[351766377,1738781443408,-500.0,0.00014489,2]
[351766379,1738781443417,-500.0,0.00014489,2]
[351766381,1738781443426,-749.42,0.00014489,2]
[351766383,1738781443436,-502.62023992,0.00014489,2]
[351766385,1738781443445,-500.0,0.00014489,2]
[351766387,1738781443454,-500.0,0.00014489,2]
[351766389,1738781443464,-500.0,0.00014489,2]
[351766391,1738781443474,-500.0,0.00014489,2]
[351766392,1738781443483,-4056.8,0.00014489,2]
[351766394,1738781443492,-500.0,0.00014489,2]
[351766396,1738781443501,-700.17,0.00014489,2]
[351766398,1738781443511,-500.0,0.00014489,2]
[351766400,1738781443520,-178.0216987,0.00014489,2]
[351766402,1738781443529,-500.0,0.00014489,2]
[351766404,1738781443546,-500.0,0.00014489,2]
[351766406,1738781443555,-500.0,0.00014489,2]
[351766408,1738781443565,-4236.29,0.00014489,2]
[351766410,1738781443578,-500.0,0.00014489,2]
[351766412,1738781443588,-500.0,0.00014489,2]
[351766414,1738781443597,-300.0,0.00014489,2]
[351766416,1738781443607,-500.0,0.00014489,2]
[351766418,1738781443618,-500.0,0.00014489,2]
[351766420,1738781443627,-580.11,0.00014489,2]
[351766422,1738781443637,-664.16,0.00014489,2]
[351766424,1738781443646,-500.0,0.00014489,2]
[351766426,1738781443656,-500.0,0.00014489,2]
[351766428,1738781443665,-500.0,0.00014489,2]
[351766430,1738781443674,-500.0,0.00014489,2]
[351766432,1738781443684,-500.0,0.00014489,2]
[351766434,1738781443694,-500.0,0.00014489,2]
[351766436,1738781443704,-987.74,0.00014489,2]
[351766438,1738781443713,-500.0,0.00014489,2]
[351766440,1738781443723,-1486.18,0.00014489,2]
[351766442,1738781443733,-500.0,0.00014489,2]
[351766444,1738781443742,-500.0,0.00014489,2]
[351766446,1738781443752,-500.0,0.00014489,2]
[351766447,1738781443761,-301.81898632,0.00014489,2]
[351766449,1738781443771,-500.0,0.00014489,2]
[351766451,1738781443780,-818.55,0.00014489,2]
[351766453,1738781443790,-501.22673616,0.00014489,2]
[351766455,1738781443799,-500.0,0.00014489,2]
[351766457,1738781443809,-500.0,0.00014489,2]
[351766459,1738781443818,-500.0,0.00014489,2]
[351766461,1738781443828,-500.0,0.00014489,2]
[351766463,1738781443842,-1094.31,0.00014489,2]
[351766465,1738781443852,-500.0,0.00014489,2]
[351766467,1738781443861,-939.06,0.00014489,2]
[351766468,1738781443871,-542.45,0.00014489,2]
[351766470,1738781443880,-500.0,0.00014489,2]
[351766472,1738781443890,-500.0,0.00014489,2]
[351766474,1738781443900,-405.8795387,0.00014489,2]
[351766476,1738781443910,-500.0,0.00014489,2]
[351766478,1738781443919,-690.32,0.00014489,2]
[351766480,1738781443928,-3936.23,0.00014489,2]
[351766482,1738781443938,-500.0,0.00014489,2]
[351766484,1738781443947,-500.0,0.00014489,2]
[351766486,1738781443957,-500.0,0.00014489,2]
[351766488,1738781443966,-500.0,0.00014489,2]
[351766490,1738781443975,-500.0,0.00014489,2]
[351766492,1738781443985,-500.0,0.00014489,2]
[351766494,1738781443994,-500.0,0.00014489,2]
[351766496,1738781444003,-549.77759903,0.00014489,2]
[351766498,1738781444012,-500.0,0.00014489,2]
[351766500,1738781444022,-729.66,0.00014489,2]
[351766502,1738781444032,-1881.8,0.00014489,2]
[351766504,1738781444044,-500.0,0.00014489,2]
[351766506,1738781444054,-500.0,0.00014489,2]
[351766508,1738781444063,-500.0,0.00014489,2]
[351766510,1738781444073,-340.1928242,0.00014489,2]
[351766511,1738781444082,-500.0,0.00014489,2]
[351766513,1738781444091,-500.0,0.00014489,2]